bitfinex-derivatives/quotes_ETHF0:USTF0_20251225
["timestamp","ask_amount","ask_price","bid_price","bid_amount"]
[1766640232213,0.2224,2941.3,2940.6,0.00510352]
[1766640232507,0.2224,2941.3,2940.7,3.401]
[1766640234211,0.00510352,2941.4,2940.7,3.401]
[1766640237716,0.2224,2941.3,2940.7,3.401]
[1766640238314,0.2224,2941.3,2940.6,0.00510352]
[1766640239715,12.91931923,2941.2,2939.6,3.401]
[1766640239908,6.96531923,2941.1,2939.6,3.401]
[1766640240111,1.01531923,2941.0,2939.6,3.401]
[1766640240304,3.401,2940.9,2939.6,3.401]
[1766640240709,3.40421974,2940.9,2940.0,0.00510352]
[1766640240908,3.40421974,2940.9,2940.0,3.40610352]
[1766640249121,0.00321974,2940.9,2940.0,3.40610352]
[1766640249314,3.40421974,2940.9,2940.0,3.40610352]
[1766640252619,3.401,2941.2,2940.0,3.40610352]
[1766640253518,3.40382098,2941.2,2940.0,3.40610352]
[1766640254226,3.39652098,2941.2,2940.0,3.40610352]
[1766640256527,0.2224,2941.1,2940.0,3.40610352]
[1766640260728,0.1628,2941.1,2940.0,3.40610352]
[1766640260931,1.31022331,2941.2,2940.0,3.57628352]
[1766640261131,0.00282098,2941.2,2940.0,3.57628352]
[1766640261934,0.00282098,2941.2,2940.1,0.17018]
[1766640271434,0.00282098,2941.2,2940.2,8.503]
[1766640271738,0.00282098,2941.2,2940.3,3.401]
[1766640274037,0.00282098,2941.2,2940.4,5.962]
[1766640286449,0.00282098,2941.2,2940.5,3.401]
[1766640304179,3.401,2941.7,2940.5,3.401]
[1766640305178,0.00510352,2941.4,2940.5,3.401]
[1766640314186,3.40496186,2941.7,2940.5,3.401]
[1766640314484,3.40496186,2941.7,2940.6,8.503]
[1766640315087,3.40496186,2941.7,2940.7,9.364]
[1766640340603,3.40496186,2941.7,2940.8,3.401]
[1766640345407,3.40496186,2941.7,2940.9,3.401]
[1766640350008,0.00396186,2941.7,2940.9,3.401]
[1766640350314,3.401,2941.6,2940.9,3.401]
[1766640368835,0.00396186,2941.7,2940.9,3.401]
[1766640369035,3.40496186,2941.7,2940.9,3.401]
[1766640371235,0.00396186,2941.7,2940.9,3.401]
[1766640372036,3.401,2941.9,2940.9,3.401]
[1766640372238,3.401,2941.9,2940.9,4.48826041]
[1766640373238,3.40480731,2941.9,2940.9,4.48826041]
[1766640374037,0.00380731,2941.9,2940.9,4.48826041]
[1766640381142,3.401,2942.2,2941.0,0.17012]
[1766640381444,3.401,2942.2,2941.1,8.502]
[1766640381649,3.401,2942.2,2941.2,9.361]
[1766640382149,0.00325671,2942.2,2941.2,9.361]
[1766640384444,1.29462767,2942.5,2941.2,9.361]
[1766640384644,1.29462767,2942.5,2941.6,0.00510352]
[1766640384843,4.69462767,2942.5,2941.7,3.4]
[1766640385645,4.6980649,2942.5,2941.7,8.88851454]
[1766640422280,1.2980649,2942.5,2941.7,8.88851454]
[1766640433401,1.2980649,2942.5,2941.7,0.00251454]
[1766640433602,1.2980649,2942.5,2941.7,3.40251454]
[1766640468038,1.42321262,2942.5,2941.7,3.40251454]
[1766640470231,1.43446823,2942.5,2941.7,3.40251454]
[1766640471728,1.42912164,2942.5,2941.7,3.40251454]
[1766640472834,0.00343723,2942.5,2941.7,3.40251454]
[1766640473038,1.41449139,2942.5,2941.7,3.40251454]
[1766640473834,0.00343723,2942.5,2941.7,3.40251454]
[1766640474129,1.43071826,2942.5,2941.7,3.40251454]
[1766640476040,1.4338759,2942.5,2941.7,3.40251454]
[1766640476237,0.00343723,2942.5,2941.7,3.40251454]
[1766640476838,1.4338759,2942.5,2941.7,3.40251454]
[1766640478636,1.44904859,2942.5,2941.7,3.40251454]
[1766640479845,0.00343723,2942.5,2941.7,3.40251454]
[1766640480036,1.44681048,2942.5,2941.7,3.40251454]
[1766640481841,1.40659353,2942.5,2941.7,3.40251454]
[1766640483042,1.43408049,2942.5,2941.7,3.40251454]
[1766640483540,1.51910049,2942.5,2941.7,3.40251454]
[1766640484340,1.50001094,2942.5,2941.7,3.40251454]
[1766640484735,1.55180293,2942.5,2941.7,3.40251454]
[1766640485345,1.57135877,2942.5,2941.7,3.40251454]
[1766640485644,1.50695877,2942.5,2941.7,3.40251454]
[1766640485837,1.48290154,2942.5,2941.7,3.40251454]
[1766640486637,1.48580928,2942.5,2941.7,3.40251454]
[1766640486940,1.49241568,2942.5,2941.7,3.40251454]
[1766640488941,1.47813729,2942.5,2941.7,3.40251454]
[1766640489239,0.00290774,2942.5,2941.7,3.40251454]
[1766640499265,7.74e-06,2942.5,2941.7,3.40251454]
[1766640500357,7.74e-06,2942.5,2941.7,4.61930295]
[1766640565328,7.74e-06,2942.5,2941.7,0.00251454]
[1766640565624,7.74e-06,2942.5,2941.8,9.352]
[1766640572637,7.74e-06,2942.5,2941.7,0.00251454]
[1766640572836,7.74e-06,2942.5,2941.8,9.352]
[1766640576938,3.40000774,2942.5,2941.7,0.00251454]
[1766640582340,4.86286288,2942.5,2941.7,0.00251454]
[1766640583547,3.40000774,2942.5,2941.7,0.00251454]
[1766640583740,4.89569981,2942.5,2941.7,0.00251454]
[1766640584843,4.88345823,2942.5,2941.7,0.00251454]
[1766640585149,3.40000774,2942.5,2941.7,0.00251454]
[1766640585353,4.88345823,2942.5,2941.7,0.00251454]
[1766640586744,3.40000774,2942.5,2941.7,0.00251454]
[1766640586944,4.87033185,2942.5,2941.7,0.00251454]
[1766640588147,3.40000774,2942.5,2941.7,0.00251454]
[1766640588445,4.90114868,2942.5,2941.7,0.00251454]
[1766640589746,4.87056395,2942.5,2941.7,0.00251454]
[1766640590351,3.40000774,2942.5,2941.7,0.00251454]
[1766640591145,4.87056395,2942.5,2941.7,0.00251454]
[1766640603450,1.47056395,2942.5,2941.7,0.00251454]
[1766640625083,1.47056395,2942.5,2941.8,5.95]
[1766640625381,1.47056395,2942.5,2941.9,3.4]
[1766640679236,7.74e-06,2942.5,2941.9,3.4]
[1766640687744,7.74e-06,2942.5,2941.9,4.63575987]
[1766640704262,3.4,2942.7,2941.9,4.63575987]
[1766640704454,1.49137958,2942.7,2941.9,4.63575987]
[1766640705362,1.49479653,2942.7,2941.9,4.63575987]
[1766640705565,0.00341695,2942.7,2941.9,4.63575987]
[1766640719567,0.00341695,2942.7,2941.9,1.23575987]
[1766640719774,0.00341695,2942.7,2942.0,9.346]
[1766640723786,0.00341695,2942.7,2942.1,3.399]
[1766640723986,15.89017906,2942.6,2941.7,5.94951454]
[1766640724182,1.01648124,2942.5,2941.8,3.399]
[1766640724487,16.35130751,2942.6,2941.8,3.399]
[1766640725394,14.87369782,2942.6,2941.8,3.399]
[1766640725591,16.35542459,2942.6,2941.8,3.399]
[1766640726289,14.87369782,2942.6,2941.8,3.399]
[1766640729793,20.80769782,2942.6,2941.8,3.399]
[1766640737196,20.80769782,2942.6,2941.7,7.17451206]
[1766640737395,20.80769782,2942.6,2941.7,10.57451206]
[1766640738797,22.2396966,2942.6,2941.7,10.57451206]
[1766640739398,20.80769782,2942.6,2941.7,10.57451206]
[1766640740299,22.25607984,2942.6,2941.7,10.57451206]
[1766640740493,22.25607984,2942.6,2941.7,1.22751206]
[1766640740692,22.25607984,2942.6,2941.7,10.57451206]
[1766640741696,22.23814605,2942.6,2941.7,10.57451206]
[1766640744200,20.80769782,2942.6,2941.7,10.57451206]
[1766640744396,22.23505794,2942.6,2941.7,10.57451206]
[1766640744698,20.80769782,2942.6,2941.7,10.57451206]
[1766640744900,22.23505794,2942.6,2941.7,10.57451206]
[1766640745595,20.80769782,2942.6,2941.7,10.57451206]
[1766640746801,22.22930654,2942.6,2941.7,10.57451206]
[1766640747102,22.26517614,2942.6,2941.7,10.57451206]
[1766640747697,20.80769782,2942.6,2941.7,10.57451206]
[1766640748702,22.21805781,2942.6,2941.7,10.57451206]
[1766640748904,20.80769782,2942.6,2941.7,10.57451206]
[1766640749406,22.22171544,2942.6,2941.7,10.57451206]
[1766640750107,20.80769782,2942.6,2941.7,10.57451206]
[1766640750698,22.24735544,2942.6,2941.7,10.57451206]
[1766640751200,20.80769782,2942.6,2941.7,10.57451206]
[1766640751706,22.25207483,2942.6,2941.7,10.57451206]
[1766640752502,12.92351836,2942.6,2941.7,10.57451206]
[1766640753708,11.47469782,2942.6,2941.7,10.57451206]
[1766640754006,12.8901195,2942.6,2941.7,10.57451206]
[1766640755314,12.8903322,2942.6,2941.7,10.57451206]
[1766640756704,11.47469782,2942.6,2941.7,10.57451206]
[1766640756904,12.892741,2942.6,2941.7,10.57451206]
[1766640758210,11.47469782,2942.6,2941.7,10.57451206]
[1766640759211,12.86425612,2942.6,2941.7,10.57451206]
[1766640759808,11.47469782,2942.6,2941.7,10.57451206]
[1766640760715,12.85185569,2942.6,2941.7,10.57451206]
[1766640761612,12.85185569,2942.6,2941.7,19.07451206]
[1766640762011,11.47469782,2942.6,2941.7,19.07451206]
[1766640762817,12.85197723,2942.6,2941.7,19.07451206]
[1766640763317,11.47469782,2942.6,2941.7,19.07451206]
[1766640763612,12.84073222,2942.6,2941.7,19.07451206]
[1766640764315,11.47469782,2942.6,2941.7,19.07451206]
[1766640764521,12.84228609,2942.6,2941.7,19.07451206]
[1766640765716,11.47469782,2942.6,2941.7,19.07451206]
[1766640766019,12.83334321,2942.6,2941.7,19.07451206]
[1766640766715,11.47469782,2942.6,2941.7,19.07451206]
[1766640767009,12.83983299,2942.6,2941.7,19.07451206]
[1766640768915,12.82502388,2942.6,2941.7,19.07451206]
[1766640770318,12.84051176,2942.6,2941.7,19.07451206]
[1766640771514,11.47469782,2942.6,2941.7,19.07451206]
[1766640771714,12.83206351,2942.6,2941.7,19.07451206]
[1766640772717,11.47469782,2942.6,2941.7,19.07451206]
[1766640773719,12.85681764,2942.6,2941.7,19.07451206]
[1766640774415,12.82031823,2942.6,2941.7,19.07451206]
[1766640774918,12.86229923,2942.6,2941.7,19.07451206]
[1766640776019,11.47469782,2942.6,2941.7,19.07451206]
[1766640777119,12.82530142,2942.6,2941.7,19.07451206]
[1766640777819,12.85087763,2942.6,2941.7,19.07451206]
[1766640778121,11.47469782,2942.6,2941.7,19.07451206]
[1766640778519,12.83162651,2942.6,2941.7,19.07451206]
[1766640779320,11.47469782,2942.6,2941.7,19.07451206]
[1766640780011,11.47469782,2942.6,2941.7,19.24459206]
[1766640780821,12.85359231,2942.6,2941.7,19.07451206]
[1766640781028,11.46599782,2942.6,2941.8,3.85381555]
[1766640781226,12.68989634,2942.6,2941.9,5.958]
[1766640781431,12.63019634,2942.6,2942.0,3.399]
[1766640781630,9.72235946,2943.7,2942.0,3.399]
[1766640781631,3.399,2943.6,2942.1,5.959]
[1766640781928,1.0139366,2943.5,2942.1,5.959]
[1766640782131,4.78140081,2943.6,2942.1,6.12906]
[1766640782322,1.01368152,2943.5,2942.1,6.12906]
[1766640782631,0.00279823,2943.5,2942.1,6.12906]
[1766640783730,0.00279823,2943.5,2942.1,7.29596915]
[1766640786728,0.00279823,2943.5,2942.1,1.33696915]
[1766640787039,0.00279823,2943.5,2942.2,17.856]
[1766640793241,0.00279823,2943.5,2942.2,18.02605]
[1766640793433,0.00279823,2943.5,2942.3,0.17005]
[1766640793633,0.00279823,2943.5,2942.3,3.72459869]
[1766640795039,0.00279823,2943.5,2942.4,5.958]
[1766640795243,0.00279823,2943.5,2942.4,9.357]
[1766640796041,1.01245146,2943.4,2942.2,1.16116336]
[1766640796246,3.399,2943.3,2942.4,3.1405]
[1766640796545,3.399,2943.3,2942.4,2.9417]
[1766640804948,1.01499834,2943.2,2942.4,2.9417]
[1766640805250,3.399,2943.3,2942.4,2.9417]
[1766640805552,1.01501005,2943.2,2942.4,2.9417]
[1766640805749,3.399,2943.3,2942.4,2.9417]
[1766640805948,1.01496954,2943.2,2942.4,2.9417]
[1766640806147,3.399,2943.3,2942.4,2.9417]
[1766640806350,1.01494168,2943.2,2942.4,2.9417]
[1766640806536,3.399,2943.3,2942.4,2.9417]
[1766640806850,1.01494196,2943.2,2942.4,2.9417]
[1766640807039,3.399,2943.3,2942.4,2.9417]
[1766640807245,1.01496477,2943.2,2942.4,2.9417]
[1766640807444,3.399,2943.3,2942.4,2.9417]
[1766640807645,1.01497255,2943.2,2942.4,2.9417]
[1766640807850,3.399,2943.3,2942.4,2.9417]
[1766640808052,1.01497251,2943.2,2942.4,2.9417]
[1766640808251,3.399,2943.3,2942.4,2.9417]
[1766640808453,1.01496674,2943.2,2942.4,2.9417]
[1766640808649,3.399,2943.3,2942.4,2.9417]
[1766640808951,1.01496637,2943.2,2942.4,2.9417]
[1766640809151,3.399,2943.3,2942.4,2.9417]
[1766640809352,1.01497291,2943.2,2942.4,2.9417]
[1766640809551,3.399,2943.3,2942.4,2.9417]
[1766640809755,1.01492469,2943.2,2942.4,2.9417]
[1766640809953,3.399,2943.3,2942.4,2.9417]
[1766640810153,1.01492466,2943.2,2942.4,2.9417]
[1766640810355,3.399,2943.3,2942.4,2.9417]
[1766640810554,1.01492752,2943.2,2942.4,2.9417]
[1766640810855,3.399,2943.3,2942.4,2.9417]
[1766640811058,1.01492752,2943.2,2942.4,2.9417]
[1766640811257,3.399,2943.3,2942.4,2.9417]
[1766640811458,1.01490567,2943.2,2942.4,2.9417]
[1766640811758,3.399,2943.3,2942.4,2.9417]
[1766640824175,1.01615538,2943.2,2942.4,2.9417]
[1766640824369,3.399,2943.3,2942.4,2.9417]
[1766640824676,1.0161596,2943.2,2942.4,2.9417]
[1766640824870,3.399,2943.3,2942.4,2.9417]
[1766640825071,1.01615958,2943.2,2942.4,2.9417]
[1766640825277,3.399,2943.3,2942.4,2.9417]
[1766640825475,1.01625977,2943.2,2942.4,2.9417]
[1766640825679,3.399,2943.3,2942.4,2.9417]
[1766640825880,1.01625973,2943.2,2942.4,2.9417]
[1766640826080,3.399,2943.3,2942.4,2.9417]
[1766640826281,1.01624628,2943.2,2942.4,2.9417]
[1766640826485,3.399,2943.3,2942.4,2.9417]
[1766640826780,1.0162463,2943.2,2942.4,2.9417]
[1766640826982,3.399,2943.3,2942.4,2.9417]
[1766640827290,1.0162463,2943.2,2942.4,2.9417]
[1766640827486,3.399,2943.3,2942.4,2.9417]
[1766640827678,1.01624096,2943.2,2942.4,2.9417]
[1766640827880,3.399,2943.3,2942.4,2.9417]
[1766640828173,1.01623541,2943.2,2942.5,5.957]
[1766640828389,3.399,2943.3,2942.5,9.356]
[1766640828689,1.01623421,2943.2,2942.1,0.0138]
[1766640828885,0.17001,2943.0,2941.7,0.00251454]
[1766640829086,9.46223421,2942.9,2941.7,0.00251454]
[1766640829288,1.01623421,2942.8,2941.7,0.00251454]
[1766640829489,1.01623421,2942.7,2941.7,0.00251454]
[1766640829786,4.41523421,2942.6,2941.7,0.00251454]
[1766640829986,4.77046974,2942.6,2941.7,0.00251454]
[1766640830188,0.0138,2942.5,2941.7,0.00251454]
[1766640830389,3.4128,2942.5,2941.8,3.399]
[1766640830695,3.4128,2942.5,2941.8,8.092]
[1766640830696,4.76533651,2942.5,2941.8,8.092]
[1766640831791,4.79442171,2942.5,2941.8,8.092]
[1766640831990,3.399,2942.5,2941.8,8.092]
[1766640832192,4.79442171,2942.5,2941.8,8.092]
[1766640833398,4.79935387,2942.5,2941.8,8.092]
[1766640834895,3.399,2942.5,2941.8,8.092]
[1766640835100,4.7749523,2942.5,2941.8,8.092]
[1766640836504,4.79115057,2942.5,2941.8,8.092]
[1766640837302,3.399,2942.5,2941.8,8.092]
[1766640837503,4.79115057,2942.5,2941.8,8.092]
[1766640838002,4.7937445,2942.5,2941.8,8.092]
[1766640838503,3.399,2942.5,2941.8,8.092]
[1766640839296,3.53448679,2942.4,2940.9,0.6491408]
[1766640839498,6.42293336,2942.3,2940.3,3.4]
[1766640839701,4.41293336,2942.2,2940.4,3.4]
[1766640839904,1.01293336,2942.1,2940.4,3.4]
[1766640840202,0.00510352,2941.5,2941.0,0.00510352]
[1766640840402,0.00510352,2941.5,2941.1,3.4]
[1766640843803,3.52e-06,2941.5,2941.1,3.4]
[1766640843998,3.4,2941.8,2941.1,3.4]
[1766640852016,1.31249566,2942.0,2941.1,3.4]
[1766640852309,3.401,2942.1,2941.1,3.4]
[1766640852509,1.31249566,2942.0,2941.1,3.4]
[1766640852915,3.401,2942.1,2941.1,3.4]
[1766640853213,4.74258832,2942.1,2941.1,3.4]
[1766640853510,3.401,2942.1,2941.1,3.4]
[1766640853811,4.74258832,2942.1,2941.0,0.00510352]
[1766640854214,4.74258832,2942.1,2941.1,3.401]
[1766640854410,4.74767726,2942.1,2941.1,3.401]
[1766640854614,4.74767726,2942.1,2941.0,3.40610352]
[1766640854910,4.74767726,2942.1,2941.1,3.401]
[1766640855813,3.401,2942.1,2941.1,3.401]
[1766640856013,4.75773079,2942.1,2941.1,3.401]
[1766640856808,3.401,2942.1,2941.1,3.401]
[1766640857409,4.75775482,2942.1,2941.1,3.401]
[1766640858516,4.7244008,2942.1,2941.1,3.401]
[1766640858915,3.401,2942.1,2941.1,3.401]
[1766640859113,4.7244008,2942.1,2941.1,3.401]
[1766640860212,3.401,2942.1,2941.1,3.401]
[1766640860915,3.401,2942.1,2941.1,3.3872]
[1766640862010,4.74424918,2942.1,2941.1,3.3872]
[1766640863614,4.75659091,2942.1,2941.1,3.3872]
[1766640864217,1.01437161,2942.0,2941.1,3.3872]
[1766640864515,4.75659091,2942.1,2941.1,3.3872]
[1766640864715,1.01458971,2942.0,2941.1,3.3872]
[1766640864916,4.712441,2942.1,2941.1,3.3872]
[1766640865118,1.01458941,2942.0,2941.1,3.3872]
[1766640865318,4.712441,2942.1,2941.1,3.3872]
[1766640865618,1.01485064,2942.0,2941.1,3.3872]
[1766640865820,4.72526829,2942.1,2941.1,3.3872]
[1766640866019,1.01485065,2942.0,2941.2,3.401]
[1766640866218,1.01485065,2941.9,2941.2,3.401]
[1766640866519,3.401,2941.8,2941.2,3.1425]
[1766640866717,0.17009,2941.6,2940.5,1.09508356]
[1766640866908,14.24353748,2941.5,2940.3,3.401]
[1766640867110,0.17011,2941.3,2938.0,6.357]
[1766640867317,4.58617425,2941.2,2939.0,1.27095644]
[1766640867518,1.26106425,2941.1,2939.1,16.4802413]
[1766640867706,0.00510352,2940.4,2939.8,0.00510352]
[1766640867906,0.00510352,2940.4,2939.9,3.401]
[1766640868108,0.00791829,2940.4,2939.9,3.401]
[1766640869422,3.401,2940.7,2939.9,3.401]
[1766640869613,3.401,2940.7,2939.9,4.55974776]
[1766640869921,3.401,2940.7,2939.9,3.401]
[1766640870522,3.40359173,2940.7,2939.9,3.401]
[1766640872525,3.40359173,2940.7,2939.8,0.05983655]
[1766640872726,3.40359173,2940.7,2939.9,3.401]
[1766640874423,5.03660558,2941.1,2939.9,3.401]
[1766640875526,5.03989286,2941.1,2939.9,3.401]
[1766640879728,4.79389286,2941.1,2939.9,3.401]
[1766640880231,3.40528728,2941.1,2939.9,3.401]
[1766640880423,4.77046711,2941.1,2939.9,3.401]
[1766640882629,1.36846711,2941.1,2939.9,3.401]
[1766640882820,1.36846711,2941.1,2939.8,0.00833655]
[1766640883027,0.00328728,2941.1,2939.9,12.203]
[1766640890438,0.00328728,2941.1,2940.0,9.361]
[1766640902239,0.00328728,2941.1,2940.0,10.59448778]
[1766640903032,0.00328728,2941.1,2940.0,9.361]
[1766640903338,3.402,2941.5,2940.1,3.83160704]
[1766640903533,1.02434272,2941.4,2940.1,3.83160704]
[1766640903742,3.402,2941.5,2940.1,3.83160704]
[1766640903939,1.02434206,2941.4,2940.1,3.83160704]
[1766640904237,0.00282828,2941.4,2940.1,3.83160704]
[1766640904438,1.02455378,2941.3,2940.0,10.64204489]
[1766640904738,0.00282828,2941.4,2940.0,9.361]
[1766640904936,1.02455354,2941.3,2940.0,9.361]
[1766640905130,0.00282828,2941.4,2940.0,9.361]
[1766640905341,1.0246266,2941.3,2940.0,10.57698736]
[1766640905639,0.00282828,2941.4,2940.0,9.361]
[1766640905939,1.02462661,2941.3,2940.0,9.361]
[1766640906131,0.00282828,2941.4,2940.0,9.361]
[1766640906435,1.02472104,2941.3,2940.0,9.361]
[1766640906738,0.00282828,2941.4,2940.0,10.60901961]
[1766640906940,1.02472107,2941.3,2940.0,10.60901961]
[1766640907131,0.00282828,2941.4,2940.0,9.361]
[1766640907333,1.02485543,2941.3,2940.0,9.361]
[1766640907533,0.00282828,2941.4,2940.0,9.361]
[1766640907734,1.02485523,2941.3,2940.0,10.61648141]
[1766640907936,0.00282828,2941.4,2940.0,10.61648141]
[1766640908237,1.02485523,2941.3,2940.0,10.61648141]
[1766640908436,0.00282828,2941.4,2940.0,10.61648141]
[1766640908636,1.02499192,2941.3,2940.0,10.61648141]
[1766640908934,0.00282828,2941.4,2940.0,9.361]
[1766640909131,1.02499208,2941.3,2940.0,9.361]
[1766640909334,0.00282828,2941.4,2940.0,10.61748401]
[1766640909537,1.02496698,2941.3,2940.0,10.61748401]
[1766640909740,0.00282828,2941.4,2940.0,10.61748401]
[1766640909941,1.02496698,2941.3,2940.0,9.361]
[1766640910142,0.00282828,2941.4,2940.0,10.6171751]
[1766640910340,1.02494752,2941.3,2940.0,9.361]
[1766640910541,0.00282828,2941.4,2940.0,10.6171751]
[1766640910741,1.02494752,2941.3,2940.0,10.6171751]
[1766640910945,0.00282828,2941.4,2940.0,9.361]
[1766640911143,1.0249475,2941.3,2940.0,9.361]
[1766640911344,0.00282828,2941.4,2940.0,9.361]
[1766640911643,1.02493329,2941.3,2940.0,9.361]
[1766640911841,0.00282828,2941.4,2940.0,9.361]
[1766640912042,1.02493329,2941.3,2940.0,10.5746275]
[1766640912245,0.00282828,2941.4,2940.0,10.5746275]
[1766640912454,1.02492124,2941.3,2940.0,10.5746275]
[1766640912741,0.00282828,2941.4,2940.0,9.361]
[1766640912948,1.02492127,2941.3,2940.0,9.361]
[1766640913147,0.00282828,2941.4,2940.0,10.61421849]
[1766640913348,1.02491097,2941.3,2940.0,10.61421849]
[1766640913547,0.00282828,2941.4,2940.0,9.361]
[1766640913747,1.02491096,2941.3,2940.0,10.59376928]
[1766640913948,0.00282828,2941.4,2940.0,10.59376928]
[1766640914250,1.02491096,2941.3,2940.0,10.59376928]
[1766640914449,0.00282828,2941.4,2940.0,9.361]
[1766640914658,1.02490327,2941.3,2940.0,9.361]
[1766640914862,0.00282828,2941.4,2940.0,9.361]
[1766640915050,1.02490327,2941.3,2940.0,9.361]
[1766640915347,0.00282828,2941.4,2940.0,9.361]
[1766640915548,1.0249013,2941.3,2940.0,10.58537891]
[1766640915749,0.00282828,2941.4,2940.0,10.58537891]
[1766640915959,1.0249013,2941.3,2940.0,10.58537891]
[1766640916157,0.00282828,2941.4,2940.0,9.361]
[1766640916457,1.02490303,2941.3,2940.0,10.60460088]
[1766640916657,0.00282828,2941.4,2940.0,9.361]
[1766640916859,1.02490303,2941.3,2940.0,10.60095919]
[1766640917057,0.00282828,2941.4,2940.0,10.60095919]
[1766640917260,1.02490303,2941.3,2940.0,10.60095919]
[1766640917458,0.00282828,2941.4,2940.0,10.60095919]
[1766640917757,1.02490852,2941.3,2940.0,10.60095919]
[1766640917958,0.00282828,2941.4,2940.0,10.58819578]
[1766640918158,1.0249068,2941.3,2940.0,10.58819578]
[1766640918459,0.00282828,2941.4,2940.0,10.58819578]
[1766640918658,1.02491544,2941.3,2940.0,10.58819578]
[1766640918857,0.00282828,2941.4,2940.0,10.58819578]
[1766640919054,1.02491544,2941.3,2940.0,9.361]
[1766640919255,0.00282828,2941.4,2940.0,10.60846366]
[1766640919458,1.02492785,2941.3,2940.0,10.60846366]
[1766640919761,0.00282828,2941.4,2940.0,10.60846366]
[1766640919962,1.02492974,2941.3,2940.0,10.60846366]
[1766640920162,0.00282828,2941.4,2940.0,10.59003277]
[1766640920360,1.02494505,2941.3,2940.0,10.59003277]
[1766640920553,0.00282828,2941.4,2940.0,10.59003277]
[1766640920753,1.02495047,2941.3,2940.0,10.59003277]
[1766640920962,0.00282828,2941.4,2940.0,10.59003277]
[1766640921156,1.02494923,2941.3,2940.0,10.58188642]
[1766640921356,0.00282828,2941.4,2940.0,10.58188642]
[1766640921560,1.02497366,2941.3,2940.0,10.58188642]
[1766640921760,0.00282828,2941.4,2940.0,10.58188642]
[1766640921961,1.02497304,2941.3,2940.0,10.58188642]
[1766640922161,0.00282828,2941.4,2940.0,9.361]
[1766640922362,1.02499878,2941.3,2940.0,10.58746799]
[1766640922560,0.00282828,2941.4,2940.0,10.58746799]
[1766640922859,1.02499873,2941.3,2940.0,10.58746799]
[1766640923059,0.00282828,2941.4,2940.0,10.58746799]
[1766640923359,1.02059726,2941.3,2940.0,10.58746799]
[1766640923559,0.00282828,2941.4,2940.0,10.58043247]
[1766640923761,1.02060558,2941.3,2940.0,10.58043247]
[1766640923960,0.00282828,2941.4,2940.0,10.58043247]
[1766640924265,1.02060522,2941.3,2940.0,9.361]
[1766640924472,0.00282828,2941.4,2940.0,9.361]
[1766640924667,1.02063735,2941.3,2940.0,10.58043247]
[1766640924867,0.00282828,2941.4,2940.0,10.58043247]
[1766640925072,1.02063276,2941.3,2940.0,10.58043247]
[1766640925365,0.00282828,2941.4,2940.0,10.61976023]
[1766640925567,1.02067235,2941.3,2940.0,10.61976023]
[1766640925864,0.00282828,2941.4,2940.0,10.61801736]
[1766640926065,1.02067235,2941.3,2940.0,10.61801736]
[1766640926269,0.00282828,2941.4,2940.0,10.61801736]
[1766640926564,1.02071723,2941.3,2940.0,10.61801736]
[1766640926765,0.00282828,2941.4,2940.0,9.361]
[1766640926967,1.02071723,2941.3,2940.0,9.361]
[1766640927266,0.00282828,2941.4,2940.0,9.361]
[1766640927459,1.02074796,2941.3,2940.0,9.361]
[1766640927659,0.00282828,2941.4,2940.0,9.361]
[1766640927859,1.02074799,2941.3,2940.0,10.58913369]
[1766640928164,0.00282828,2941.4,2940.0,10.61506841]
[1766640928358,1.02078441,2941.3,2940.0,9.361]
[1766640928558,0.00282828,2941.4,2940.0,10.61506841]
[1766640928758,1.02078441,2941.3,2940.0,10.61506841]
[1766640928958,0.00282828,2941.4,2940.0,10.61506841]
[1766640929259,1.02078441,2941.3,2940.0,9.361]
[1766640929563,0.00282828,2941.4,2940.0,9.361]
[1766640929766,1.02082903,2941.3,2940.0,9.361]
[1766640929963,0.00282828,2941.4,2940.0,9.361]
[1766640930266,1.02082903,2941.3,2940.1,17.884]
[1766640930467,0.00282828,2941.4,2940.1,17.884]
[1766640930669,1.02083361,2941.3,2940.1,17.884]
[1766640930868,0.00282828,2941.4,2940.1,17.884]
[1766640931068,1.02083361,2941.3,2940.1,17.884]
[1766640931272,0.00282828,2941.4,2940.1,19.11840049]
[1766640931469,1.02088661,2941.3,2940.1,17.884]
[1766640931670,0.00282828,2941.4,2940.1,17.884]
[1766640931871,1.02088904,2941.3,2940.1,19.11840049]
[1766640932162,0.00282828,2941.4,2940.1,19.11840049]
[1766640932368,1.02097322,2941.3,2940.1,17.884]
[1766640932569,0.00282828,2941.4,2940.1,17.884]
[1766640932768,1.02097322,2941.3,2940.1,17.884]
[1766640932968,0.00282828,2941.4,2940.1,17.884]
[1766640933168,1.02097322,2941.3,2940.1,17.884]
[1766640933367,0.00282828,2941.4,2940.1,19.11565385]
[1766640933668,1.02099412,2941.3,2940.1,19.11565385]
[1766640933866,0.00282828,2941.4,2940.1,19.11565385]
[1766640934070,1.02099412,2941.3,2940.1,19.11565385]
[1766640934273,0.00282828,2941.4,2940.1,19.13588011]
[1766640934472,1.02099651,2941.3,2940.1,19.13588011]
[1766640934673,0.00282828,2941.4,2940.1,17.884]
[1766640934973,1.0209965,2941.3,2940.1,17.884]
[1766640935165,0.00282828,2941.4,2940.1,17.884]
[1766640935365,1.02099489,2941.3,2940.1,19.09947341]
[1766640935566,0.00282828,2941.4,2940.1,19.09947341]
[1766640935767,1.02099491,2941.3,2940.1,19.09947341]
[1766640935968,0.00282828,2941.4,2940.1,19.09947341]
[1766640936171,1.02099491,2941.3,2940.1,19.09947341]
[1766640936373,0.00282828,2941.4,2940.1,19.09947341]
[1766640936574,1.02099398,2941.3,2940.1,19.10280723]
[1766640936777,0.00282828,2941.4,2940.1,19.10280723]
[1766640936980,1.02099398,2941.3,2940.1,19.10280723]
[1766640937170,0.00282828,2941.4,2940.1,17.884]
[1766640937370,1.02099364,2941.3,2940.1,19.10280723]
[1766640937670,0.00282828,2941.4,2940.1,17.884]
[1766640937869,1.02099379,2941.3,2940.1,19.11154687]
[1766640938064,0.00282828,2941.4,2940.1,19.11154687]
[1766640938273,1.02099387,2941.3,2940.1,19.11154687]
[1766640938478,0.00282828,2941.4,2940.1,19.11154687]
[1766640938679,1.0209938,2941.3,2940.1,19.11154687]
[1766640938977,0.00282828,2941.4,2940.1,19.11255132]
[1766640939177,1.0209936,2941.3,2940.1,17.884]